[Event "*** SCC Grand Prix: Titled Tuesday Blitz"]
[Site "Chess.com"]
[Date "2020.06.09"]
[Round "6"]
[White "NidjatMamedov"]
[Black "LittlePeasant"]
[Result "0-1"]
[WhiteElo "2692"]
[BlackElo "2818"]
[TimeControl "180+1"]
[EndTime "10:07:53 PDT"]
[Termination "LittlePeasant won by resignation"]

1. e4 {[%clk 0:03:00.9]} 1... c5 {[%clk 0:02:57]} 2. Nf3 {[%clk 0:03:00.4]} 2...
e6 {[%clk 0:02:56.7]} 3. d4 {[%clk 0:02:59.7]} 3... cxd4 {[%clk 0:02:57.6]} 4.
Nxd4 {[%clk 0:03:00.1]} 4... Nc6 {[%clk 0:02:58.1]} 5. Nc3 {[%clk 0:02:59.8]}
5... Qc7 {[%clk 0:02:58]} 6. Be3 {[%clk 0:02:59.1]} 6... a6 {[%clk 0:02:57.8]}
7. Qd2 {[%clk 0:02:58.9]} 7... Nf6 {[%clk 0:02:56.4]} 8. O-O-O {[%clk
0:02:57.5]} 8... Bb4 {[%clk 0:02:56.4]} 9. f3 {[%clk 0:02:57.6]} 9... Ne5 {[%clk
0:02:55.6]} 10. Nb3 {[%clk 0:02:53.4]} 10... b5 {[%clk 0:02:54.6]} 11. Bd4
{[%clk 0:02:50.9]} 11... Be7 {[%clk 0:02:34.5]} 12. Kb1 {[%clk 0:02:38.1]} 12...
d6 {[%clk 0:02:19.7]} 13. h4 {[%clk 0:02:27.1]} 13... Nc4 {[%clk 0:02:16.7]} 14.
Qe1 {[%clk 0:02:13.5]} 14... e5 {[%clk 0:02:12.3]} 15. Bf2 {[%clk 0:02:12.7]}
15... Be6 {[%clk 0:02:11.1]} 16. Nd5 {[%clk 0:01:58.2]} 16... Nxd5 {[%clk
0:01:58]} 17. exd5 {[%clk 0:01:59.1]} 17... Bf5 {[%clk 0:01:58.5]} 18. Bd3
{[%clk 0:01:57.5]} 18... Bxd3 {[%clk 0:01:21.8]} 19. cxd3 {[%clk 0:01:57.1]}
19... Nb6 {[%clk 0:01:15.9]} 20. Rc1 {[%clk 0:01:56.7]} 20... Qd8 {[%clk
0:01:09.5]} 21. Na5 {[%clk 0:01:33.9]} 21... Nxd5 {[%clk 0:01:03.7]} 22. Nc6
{[%clk 0:01:34.5]} 22... Qd7 {[%clk 0:00:59.4]} 23. d4 {[%clk 0:01:11.6]} 23...
O-O {[%clk 0:00:45.9]} 24. dxe5 {[%clk 0:01:09.7]} 24... dxe5 {[%clk 0:00:46.3]}
25. Nxe5 {[%clk 0:00:58.7]} 25... Qf5+ {[%clk 0:00:45.9]} 26. Qe4 {[%clk
0:00:55.3]} 26... Qxe4+ {[%clk 0:00:45.9]} 27. fxe4 {[%clk 0:00:56.2]} 27... Nf4
{[%clk 0:00:46.6]} 28. Nc6 {[%clk 0:00:54.4]} 28... Rfe8 {[%clk 0:00:46.3]} 29.
g3 {[%clk 0:00:33.7]} 29... Nd3 {[%clk 0:00:40.6]} 30. Rc2 {[%clk 0:00:34.1]}
30... Bf6 {[%clk 0:00:35.3]} 31. Rd1 {[%clk 0:00:20.2]} 31... Nxf2 {[%clk
0:00:32.8]} 32. Rxf2 {[%clk 0:00:21.1]} 32... Rxe4 {[%clk 0:00:33.3]} 33. Rd7
{[%clk 0:00:20.5]} 33... h5 {[%clk 0:00:27.1]} 34. a3 {[%clk 0:00:20.6]} 34...
Rc8 {[%clk 0:00:23.1]} 35. Nb4 {[%clk 0:00:20.7]} 35... Bd4 {[%clk 0:00:05.1]}
36. Rfxf7 {[%clk 0:00:19.2]} 36... a5 {[%clk 0:00:04.5]} 37. Nc2 {[%clk
0:00:17.3]} 37... Be5 {[%clk 0:00:03.9]} 38. Rfe7 {[%clk 0:00:16.8]} 38... Re2
{[%clk 0:00:04.3]} 39. Nd4 {[%clk 0:00:15.6]} 39... Re1+ {[%clk 0:00:03.4]} 40.
Ka2 {[%clk 0:00:16.1]} 40... Rf8 {[%clk 0:00:03.3]} 41. Ne6 {[%clk 0:00:14.8]}
41... Rf2 {[%clk 0:00:02.9]} 42. Re8+ {[%clk 0:00:15]} 42... Kh7 {[%clk
0:00:02.4]} 43. Ng5+ {[%clk 0:00:15.7]} 43... Kg6 {[%clk 0:00:03.3]} 44. Re6+
{[%clk 0:00:14.6]} 44... Rf6 {[%clk 0:00:03.9]} 45. Rb7 {[%clk 0:00:10.9]} 45...
Rxe6 {[%clk 0:00:03.8]} 46. Nxe6 {[%clk 0:00:11.8]} 46... Bxg3 {[%clk
0:00:04.4]} 47. Rxg7+ {[%clk 0:00:10]} 47... Kf6 {[%clk 0:00:03.8]} 48. Rxg3
{[%clk 0:00:10.6]} 48... Rxe6 {[%clk 0:00:04.4]} 49. Rg5 {[%clk 0:00:11.5]}
49... Re5 {[%clk 0:00:04.8]} 50. Rxe5 {[%clk 0:00:10.6]} 50... Kxe5 {[%clk
0:00:05.7]} 51. Kb3 {[%clk 0:00:11.5]} 51... Kd4 {[%clk 0:00:05.8]} 52. a4
{[%clk 0:00:12.4]} 52... b4 {[%clk 0:00:05.8]} 53. Kc2 {[%clk 0:00:12.1]} 53...
Kc4 {[%clk 0:00:06.2]} 54. b3+ {[%clk 0:00:10.3]} 54... Kd4 {[%clk 0:00:06.8]}
55. Kd2 {[%clk 0:00:11.2]} 55... Ke4 {[%clk 0:00:07.5]} 56. Ke2 {[%clk
0:00:12.1]} 56... Kf4 {[%clk 0:00:08.1]} 57. Kd3 {[%clk 0:00:13]} 57... Kg4
{[%clk 0:00:09]} 58. Kc4 {[%clk 0:00:13.9]} 58... Kxh4 {[%clk 0:00:09.9]} 59.
Kb5 {[%clk 0:00:14.8]} 59... Kg3 {[%clk 0:00:10.8]} 60. Kxa5 {[%clk 0:00:15.7]}
60... h4 {[%clk 0:00:11.7]} 61. Kb5 {[%clk 0:00:16.6]} 61... h3 {[%clk
0:00:12.6]} 62. a5 {[%clk 0:00:17.3]} 62... h2 {[%clk 0:00:13.5]} 63. a6 {[%clk
0:00:18.2]} 63... h1=Q {[%clk 0:00:14.4]} 64. a7 {[%clk 0:00:19.1]} 64... Qa8
{[%clk 0:00:15]} 0-1

[Event "*** SCC Grand Prix: Titled Tuesday Blitz"]
[Site "Chess.com"]
[Date "2020.06.09"]
[Round "6"]
[White "Nafania1"]
[Black "aleksandrovaleksei"]
[Result "1-0"]
[WhiteElo "2446"]
[BlackElo "2584"]
[TimeControl "180+1"]
[EndTime "10:07:56 PDT"]
[Termination "Nafania1 won on time"]

1. e4 {[%clk 0:03:00.9]} 1... e5 {[%clk 0:02:59.4]} 2. Nf3 {[%clk 0:03:00.8]}
2... Nc6 {[%clk 0:02:59.9]} 3. Bb5 {[%clk 0:03:00.9]} 3... a6 {[%clk 0:02:57.4]}
4. Ba4 {[%clk 0:03:01]} 4... Nf6 {[%clk 0:02:57.4]} 5. O-O {[%clk 0:03:00.4]}
5... Be7 {[%clk 0:02:57.6]} 6. Re1 {[%clk 0:03:00.1]} 6... b5 {[%clk 0:02:56.7]}
7. Bb3 {[%clk 0:03:00.3]} 7... d6 {[%clk 0:02:57.6]} 8. c3 {[%clk 0:03:00]} 8...
O-O {[%clk 0:02:57.4]} 9. d4 {[%clk 0:02:56.9]} 9... Bg4 {[%clk 0:02:56.2]} 10.
Be3 {[%clk 0:02:56.4]} 10... Bh5 {[%clk 0:02:52.8]} 11. h3 {[%clk 0:02:35.8]}
11... Na5 {[%clk 0:02:48.6]} 12. dxe5 {[%clk 0:02:32.3]} 12... dxe5 {[%clk
0:02:42.7]} 13. Qxd8 {[%clk 0:02:15.9]} 13... Raxd8 {[%clk 0:02:35.1]} 14. Nxe5
{[%clk 0:02:12.5]} 14... Nxe4 {[%clk 0:02:34.5]} 15. Bf4 {[%clk 0:02:03.3]}
15... Nc5 {[%clk 0:02:08.4]} 16. Bc2 {[%clk 0:01:50.6]} 16... Bd6 {[%clk
0:02:02.1]} 17. b4 {[%clk 0:01:42.8]} 17... f6 {[%clk 0:01:54.5]} 18. bxc5
{[%clk 0:01:41.9]} 18... Bxe5 {[%clk 0:01:53.3]} 19. Bxe5 {[%clk 0:01:36.4]}
19... fxe5 {[%clk 0:01:52.9]} 20. Na3 {[%clk 0:01:33.4]} 20... Rd2 {[%clk
0:01:47.1]} 21. f3 {[%clk 0:01:26.2]} 21... Rd5 {[%clk 0:01:20.1]} 22. Bb3
{[%clk 0:01:04.9]} 22... Nxb3 {[%clk 0:01:18.3]} 23. axb3 {[%clk 0:01:05.3]}
23... Rxc5 {[%clk 0:01:18.7]} 24. c4 {[%clk 0:00:59.9]} 24... Bf7 {[%clk
0:01:13.3]} 25. b4 {[%clk 0:00:56.9]} 25... Rc6 {[%clk 0:01:10.7]} 26. cxb5
{[%clk 0:00:51.8]} 26... axb5 {[%clk 0:01:10.5]} 27. Nxb5 {[%clk 0:00:51.9]}
27... Re8 {[%clk 0:00:46.7]} 28. Rac1 {[%clk 0:00:49.1]} 28... Rc4 {[%clk
0:00:35.6]} 29. Rxc4 {[%clk 0:00:47.8]} 29... Bxc4 {[%clk 0:00:34.6]} 30. Nc3
{[%clk 0:00:40.1]} 30... Kf7 {[%clk 0:00:32.7]} 31. Re4 {[%clk 0:00:39.5]} 31...
Bb3 {[%clk 0:00:31]} 32. Kf2 {[%clk 0:00:38]} 32... Re6 {[%clk 0:00:26.9]} 33.
Ke3 {[%clk 0:00:37.1]} 33... Ke7 {[%clk 0:00:26.6]} 34. Kd2 {[%clk 0:00:35.9]}
34... c6 {[%clk 0:00:24.7]} 35. f4 {[%clk 0:00:34.2]} 35... exf4 {[%clk
0:00:23.4]} 36. Rxf4 {[%clk 0:00:34.5]} 36... Rd6+ {[%clk 0:00:22.7]} 37. Ke3
{[%clk 0:00:33.7]} 37... Bc2 {[%clk 0:00:16]} 38. Rd4 {[%clk 0:00:32.3]} 38...
Rg6 {[%clk 0:00:15.9]} 39. g4 {[%clk 0:00:31.8]} 39... Rh6 {[%clk 0:00:15.7]}
40. Kd2 {[%clk 0:00:30.5]} 40... Bg6 {[%clk 0:00:14.5]} 41. Rc4 {[%clk
0:00:26.7]} 41... Kd7 {[%clk 0:00:13.4]} 42. Na4 {[%clk 0:00:26.1]} 42... Rxh3
{[%clk 0:00:12.6]} 43. Nc5+ {[%clk 0:00:26.3]} 43... Kd6 {[%clk 0:00:11.3]} 44.
Rd4+ {[%clk 0:00:26.4]} 44... Kc7 {[%clk 0:00:10.1]} 45. Rd7+ {[%clk 0:00:26.3]}
45... Kc8 {[%clk 0:00:10.2]} 46. Rxg7 {[%clk 0:00:26.1]} 46... Rg3 {[%clk
0:00:09.9]} 47. Ne6 {[%clk 0:00:25]} 47... Rxg4 {[%clk 0:00:09.2]} 48. Kc3
{[%clk 0:00:24.5]} 48... Bf5 {[%clk 0:00:07.6]} 49. Rxg4 {[%clk 0:00:23]} 49...
Bxg4 {[%clk 0:00:07]} 50. Nd4 {[%clk 0:00:19.9]} 50... Kd7 {[%clk 0:00:06.4]}
51. Nc2 {[%clk 0:00:19.7]} 51... h5 {[%clk 0:00:05.9]} 52. Ne3 {[%clk
0:00:19.7]} 52... Be6 {[%clk 0:00:05.9]} 53. Ng2 {[%clk 0:00:18.5]} 53... Ke7
{[%clk 0:00:04.5]} 54. Kd4 {[%clk 0:00:18]} 54... Bd5 {[%clk 0:00:04.1]} 55. Nf4
{[%clk 0:00:17.7]} 55... Bf3 {[%clk 0:00:03.6]} 56. Kc5 {[%clk 0:00:16.9]} 56...
h4 {[%clk 0:00:03.1]} 57. Ng6+ {[%clk 0:00:16.7]} 57... Kd7 {[%clk 0:00:02.3]}
58. Nxh4 {[%clk 0:00:16.9]} 1-0

[Event "*** SCC Grand Prix: Titled Tuesday Blitz"]
[Site "Chess.com"]
[Date "2020.06.09"]
[Round "6"]
[White "lachesisQ"]
[Black "vladislavkovalev"]
[Result "1/2-1/2"]
[WhiteElo "3049"]
[BlackElo "2941"]
[TimeControl "180+1"]
[EndTime "10:07:57 PDT"]
[Termination "Game drawn - insufficient material"]

1. d4 {[%clk 0:03:00.9]} 1... Nf6 {[%clk 0:03:00]} 2. c4 {[%clk 0:03:00.9]} 2...
e6 {[%clk 0:03:00.4]} 3. Nc3 {[%clk 0:03:01.8]} 3... Bb4 {[%clk 0:03:00.6]} 4.
Qc2 {[%clk 0:03:02.2]} 4... b6 {[%clk 0:02:57.1]} 5. a3 {[%clk 0:03:00.6]} 5...
Bxc3+ {[%clk 0:02:55.5]} 6. Qxc3 {[%clk 0:03:01.5]} 6... Bb7 {[%clk 0:02:54.9]}
7. Bg5 {[%clk 0:03:01.5]} 7... h6 {[%clk 0:02:49.7]} 8. Bh4 {[%clk 0:03:01.2]}
8... g5 {[%clk 0:02:47.5]} 9. Bg3 {[%clk 0:03:01.3]} 9... Ne4 {[%clk 0:02:48.1]}
10. Qc2 {[%clk 0:03:01.1]} 10... d6 {[%clk 0:02:44.2]} 11. f3 {[%clk 0:02:55.4]}
11... Nxg3 {[%clk 0:02:44.4]} 12. hxg3 {[%clk 0:02:56.3]} 12... Nc6 {[%clk
0:02:43.2]} 13. O-O-O {[%clk 0:02:55.3]} 13... f5 {[%clk 0:02:17.6]} 14. e3
{[%clk 0:02:53.9]} 14... Qf6 {[%clk 0:02:17.1]} 15. Ne2 {[%clk 0:02:33.3]} 15...
O-O-O {[%clk 0:02:14.2]} 16. Nc3 {[%clk 0:02:32]} 16... h5 {[%clk 0:02:08]} 17.
Qa4 {[%clk 0:02:14.3]} 17... Kb8 {[%clk 0:02:05.5]} 18. Be2 {[%clk 0:01:52.5]}
18... h4 {[%clk 0:01:59.3]} 19. gxh4 {[%clk 0:01:52.2]} 19... Rxh4 {[%clk
0:02:00.2]} 20. Rxh4 {[%clk 0:01:48.7]} 20... gxh4 {[%clk 0:02:01.1]} 21. c5
{[%clk 0:01:48.5]} 21... Qg5 {[%clk 0:01:46.7]} 22. Bb5 {[%clk 0:01:16.5]} 22...
Qxe3+ {[%clk 0:01:46.7]} 23. Kb1 {[%clk 0:01:15.9]} 23... Ne7 {[%clk 0:01:35]}
24. c6 {[%clk 0:01:12]} 24... Ba8 {[%clk 0:01:17.8]} 25. d5 {[%clk 0:01:12.2]}
25... Nxd5 {[%clk 0:00:51.1]} 26. Nxd5 {[%clk 0:01:08.4]} 26... exd5 {[%clk
0:00:50.6]} 27. Qxh4 {[%clk 0:01:09.1]} 27... Re8 {[%clk 0:00:48.9]} 28. Rxd5
{[%clk 0:00:52.8]} 28... a6 {[%clk 0:00:38.9]} 29. Ba4 {[%clk 0:00:50.2]} 29...
b5 {[%clk 0:00:29.3]} 30. Bc2 {[%clk 0:00:19.4]} 30... Bxc6 {[%clk 0:00:29.1]}
31. Rxf5 {[%clk 0:00:19.8]} 31... Qd2 {[%clk 0:00:27.1]} 32. Bb3 {[%clk
0:00:14.1]} 32... Re1+ {[%clk 0:00:18.3]} 33. Ka2 {[%clk 0:00:14.5]} 33... Qc1
{[%clk 0:00:19]} 34. Be6 {[%clk 0:00:03.4]} 34... Qb1+ {[%clk 0:00:12.7]} 35.
Kb3 {[%clk 0:00:03.5]} 35... Re3+ {[%clk 0:00:10.7]} 36. Kb4 {[%clk 0:00:03.7]}
36... Qe1+ {[%clk 0:00:08.7]} 37. Qxe1 {[%clk 0:00:02.4]} 37... Rxe1 {[%clk
0:00:09.6]} 38. Bb3 {[%clk 0:00:02.4]} 38... Ka7 {[%clk 0:00:09.6]} 39. Kc3
{[%clk 0:00:02.6]} 39... Re2 {[%clk 0:00:08.4]} 40. g4 {[%clk 0:00:02.5]} 40...
Re3+ {[%clk 0:00:08.6]} 41. Kc2 {[%clk 0:00:02]} 41... Rxf3 {[%clk 0:00:09.2]}
42. Rxf3 {[%clk 0:00:02.3]} 42... Bxf3 {[%clk 0:00:10.1]} 43. g5 {[%clk
0:00:03.2]} 43... Kb7 {[%clk 0:00:07.4]} 44. Bf7 {[%clk 0:00:02.8]} 44... Be4+
{[%clk 0:00:03.8]} 45. Kd2 {[%clk 0:00:02.7]} 45... c5 {[%clk 0:00:03.4]} 46. g6
{[%clk 0:00:03]} 46... Bxg6 {[%clk 0:00:03.8]} 47. Bxg6 {[%clk 0:00:03.9]} 47...
Kc6 {[%clk 0:00:04.3]} 48. Be4+ {[%clk 0:00:04.5]} 48... d5 {[%clk 0:00:04.7]}
49. Bg2 {[%clk 0:00:05.4]} 49... a5 {[%clk 0:00:05.1]} 50. Kc3 {[%clk
0:00:05.8]} 50... b4+ {[%clk 0:00:04.8]} 51. Kb3 {[%clk 0:00:06.3]} 51... c4+
{[%clk 0:00:02]} 52. Ka4 {[%clk 0:00:06]} 52... Kc5 {[%clk 0:00:02.6]} 53. Bf1
{[%clk 0:00:02.8]} 53... d4 {[%clk 0:00:01.8]} 54. axb4+ {[%clk 0:00:02]} 54...
axb4 {[%clk 0:00:02.1]} 55. b3 {[%clk 0:00:02.6]} 55... d3 {[%clk 0:00:02.1]}
56. bxc4 {[%clk 0:00:02.1]} 56... Kxc4 {[%clk 0:00:03]} 57. Bxd3+ {[%clk
0:00:02.2]} 57... Kxd3 {[%clk 0:00:03.9]} 58. Kxb4 {[%clk 0:00:03.1]} 1/2-1/2

[Event "*** SCC Grand Prix: Titled Tuesday Blitz"]
[Site "Chess.com"]
[Date "2020.06.09"]
[Round "6"]
[White "topin8"]
[Black "shineatchess"]
[Result "0-1"]
[WhiteElo "2379"]
[BlackElo "2276"]
[TimeControl "180+1"]
[EndTime "10:07:57 PDT"]
[Termination "shineatchess won by checkmate"]

1. e4 {[%clk 0:02:59.4]} 1... e5 {[%clk 0:02:59.2]} 2. Nf3 {[%clk 0:02:58.2]}
2... Nc6 {[%clk 0:02:59.2]} 3. Bc4 {[%clk 0:02:57.9]} 3... Nf6 {[%clk
0:02:59.3]} 4. d3 {[%clk 0:02:57.3]} 4... Be7 {[%clk 0:02:59]} 5. c3 {[%clk
0:02:54.3]} 5... O-O {[%clk 0:02:56.8]} 6. a4 {[%clk 0:02:53.3]} 6... d5 {[%clk
0:02:47.8]} 7. exd5 {[%clk 0:02:52.2]} 7... Nxd5 {[%clk 0:02:47.8]} 8. O-O
{[%clk 0:02:52.4]} 8... Be6 {[%clk 0:02:40.5]} 9. Re1 {[%clk 0:02:46.8]} 9...
Qd6 {[%clk 0:02:23]} 10. Nbd2 {[%clk 0:02:43.1]} 10... f5 {[%clk 0:02:22]} 11.
Bb3 {[%clk 0:02:23.5]} 11... Bf6 {[%clk 0:02:09.7]} 12. Nc4 {[%clk 0:02:21.8]}
12... Qd7 {[%clk 0:01:30]} 13. Ncxe5 {[%clk 0:02:18.6]} 13... Nxe5 {[%clk
0:01:30]} 14. Nxe5 {[%clk 0:02:19.5]} 14... Bxe5 {[%clk 0:01:30.2]} 15. Rxe5
{[%clk 0:02:20.4]} 15... c6 {[%clk 0:01:30.3]} 16. Qe2 {[%clk 0:01:55.6]} 16...
Rae8 {[%clk 0:01:17.3]} 17. Bd2 {[%clk 0:01:45.4]} 17... Bf7 {[%clk 0:00:45.4]}
18. Re1 {[%clk 0:01:37.2]} 18... Rxe5 {[%clk 0:00:45.3]} 19. Qxe5 {[%clk
0:01:37.6]} 19... Re8 {[%clk 0:00:41.6]} 20. Qd4 {[%clk 0:01:12.1]} 20... Rxe1+
{[%clk 0:00:40]} 21. Bxe1 {[%clk 0:01:13]} 21... Qe7 {[%clk 0:00:37.3]} 22. Kf1
{[%clk 0:01:07.9]} 22... c5 {[%clk 0:00:18.6]} 23. Qxd5 {[%clk 0:00:20.5]} 23...
Bxd5 {[%clk 0:00:17.8]} 24. Bxd5+ {[%clk 0:00:21.4]} 24... Kf8 {[%clk 0:00:18]}
25. g3 {[%clk 0:00:11.6]} 25... b6 {[%clk 0:00:15]} 26. Bd2 {[%clk 0:00:10.2]}
26... Qd6 {[%clk 0:00:14]} 27. c4 {[%clk 0:00:09.1]} 27... g6 {[%clk 0:00:09.9]}
28. Kg2 {[%clk 0:00:05.7]} 28... Ke7 {[%clk 0:00:09.2]} 29. Bg5+ {[%clk
0:00:04.7]} 29... Kd7 {[%clk 0:00:08.9]} 30. Bf4 {[%clk 0:00:05.6]} 30... Qf6
{[%clk 0:00:08]} 31. b3 {[%clk 0:00:04.7]} 31... Qc3 {[%clk 0:00:07.7]} 32. Bg8
{[%clk 0:00:04.1]} 32... Qxd3 {[%clk 0:00:07.1]} 33. Bxh7 {[%clk 0:00:03.8]}
33... Qe4+ {[%clk 0:00:07.1]} 34. Kg1 {[%clk 0:00:02.5]} 34... Qb1+ {[%clk
0:00:06.4]} 35. Kg2 {[%clk 0:00:02.1]} 35... Qxb3 {[%clk 0:00:06.4]} 36. Bxg6
{[%clk 0:00:01.9]} 36... Qxc4 {[%clk 0:00:06.6]} 37. Bxf5+ {[%clk 0:00:02.1]}
37... Kc6 {[%clk 0:00:06.1]} 38. Bg4 {[%clk 0:00:01.9]} 38... Qxa4 {[%clk
0:00:04.5]} 39. Bf3+ {[%clk 0:00:02.4]} 39... Kb5 {[%clk 0:00:03.2]} 40. h4
{[%clk 0:00:03.3]} 40... c4 {[%clk 0:00:03.3]} 41. Be5 {[%clk 0:00:03.4]} 41...
Qb3 {[%clk 0:00:02.2]} 42. h5 {[%clk 0:00:03.1]} 42... c3 {[%clk 0:00:03.1]} 43.
Be2+ {[%clk 0:00:03.1]} 43... Ka4 {[%clk 0:00:02.4]} 44. Bd3 {[%clk 0:00:01.9]}
44... c2 {[%clk 0:00:03.3]} 45. Bxc2 {[%clk 0:00:02.3]} 45... Qxc2 {[%clk
0:00:03.6]} 46. Bf4 {[%clk 0:00:02.3]} 46... Qh7 {[%clk 0:00:04.5]} 47. g4
{[%clk 0:00:02.4]} 47... b5 {[%clk 0:00:05.4]} 48. Kg3 {[%clk 0:00:02.8]} 48...
b4 {[%clk 0:00:06.3]} 49. g5 {[%clk 0:00:03.7]} 49... b3 {[%clk 0:00:07.2]} 50.
h6 {[%clk 0:00:04.6]} 50... b2 {[%clk 0:00:08.1]} 51. Kg4 {[%clk 0:00:05.5]}
51... Qg6 {[%clk 0:00:09]} 52. Bg3 {[%clk 0:00:04.6]} 52... Qe6+ {[%clk
0:00:09.9]} 53. Kh4 {[%clk 0:00:04.6]} 53... b1=Q {[%clk 0:00:10.8]} 54. f4
{[%clk 0:00:05.2]} 54... Qbf5 {[%clk 0:00:11]} 55. h7 {[%clk 0:00:03.8]} 55...
Qg4# {[%clk 0:00:11.2]} 0-1

[Event "*** SCC Grand Prix: Titled Tuesday Blitz"]
[Site "Chess.com"]
[Date "2020.06.09"]
[Round "6"]
[White "Smile2005"]
[Black "maciek_92"]
[Result "0-1"]
[WhiteElo "2504"]
[BlackElo "2672"]
[TimeControl "180+1"]
[EndTime "10:07:59 PDT"]
[Termination "maciek_92 won on time"]

1. Nf3 {[%clk 0:03:00.6]} 1... f5 {[%clk 0:02:59]} 2. g3 {[%clk 0:03:01.5]} 2...
Nf6 {[%clk 0:02:58.7]} 3. Bg2 {[%clk 0:03:02.4]} 3... g6 {[%clk 0:02:58.8]} 4.
O-O {[%clk 0:03:03.3]} 4... Bg7 {[%clk 0:02:59.2]} 5. d3 {[%clk 0:03:04.2]} 5...
O-O {[%clk 0:02:59.3]} 6. Nbd2 {[%clk 0:03:04.3]} 6... Nc6 {[%clk 0:02:57.1]} 7.
e4 {[%clk 0:03:04.4]} 7... e5 {[%clk 0:02:57.1]} 8. exf5 {[%clk 0:03:04.2]} 8...
gxf5 {[%clk 0:02:57.4]} 9. Nh4 {[%clk 0:03:04.6]} 9... d6 {[%clk 0:02:32.4]} 10.
f4 {[%clk 0:03:03]} 10... exf4 {[%clk 0:01:53.4]} 11. Rxf4 {[%clk 0:03:01.9]}
11... Bh6 {[%clk 0:01:53]} 12. Rf1 {[%clk 0:02:38.8]} 12... Ng4 {[%clk
0:01:31.3]} 13. Nc4 {[%clk 0:02:29.7]} 13... f4 {[%clk 0:01:26.1]} 14. Bf3
{[%clk 0:01:47.4]} 14... Nxh2 {[%clk 0:00:58.5]} 15. Kxh2 {[%clk 0:01:36.4]}
15... fxg3+ {[%clk 0:00:57]} 16. Kg2 {[%clk 0:01:36.8]} 16... Bxc1 {[%clk
0:00:53.9]} 17. Qxc1 {[%clk 0:01:20.5]} 17... Qxh4 {[%clk 0:00:51.1]} 18. Rh1
{[%clk 0:01:12.2]} 18... Qf6 {[%clk 0:00:49.5]} 19. Qe3 {[%clk 0:00:56.6]} 19...
Bf5 {[%clk 0:00:34]} 20. Raf1 {[%clk 0:00:35.4]} 20... Rae8 {[%clk 0:00:28.3]}
21. Be4 {[%clk 0:00:35.3]} 21... Bxe4+ {[%clk 0:00:24.2]} 22. dxe4 {[%clk
0:00:33.8]} 22... Qg6 {[%clk 0:00:17]} 23. Rxf8+ {[%clk 0:00:34.1]} 23... Rxf8
{[%clk 0:00:17.4]} 24. Qxg3 {[%clk 0:00:31.9]} 24... Rf4 {[%clk 0:00:17]} 25.
Qxg6+ {[%clk 0:00:29.8]} 25... hxg6 {[%clk 0:00:17.9]} 26. Nd2 {[%clk
0:00:26.7]} 26... Ne5 {[%clk 0:00:17.1]} 27. Rh3 {[%clk 0:00:22.2]} 27... Kg7
{[%clk 0:00:16.9]} 28. Rb3 {[%clk 0:00:19.5]} 28... b6 {[%clk 0:00:16.9]} 29.
Rc3 {[%clk 0:00:17.9]} 29... c6 {[%clk 0:00:17.2]} 30. b4 {[%clk 0:00:15.6]}
30... Kf6 {[%clk 0:00:16.4]} 31. Ra3 {[%clk 0:00:13.2]} 31... Ng4 {[%clk
0:00:11.7]} 32. Kg3 {[%clk 0:00:10.6]} 32... g5 {[%clk 0:00:11.8]} 33. Rxa7
{[%clk 0:00:09]} 33... Ne3 {[%clk 0:00:06.7]} 34. Rc7 {[%clk 0:00:06.6]} 34...
c5 {[%clk 0:00:04.3]} 35. Rc6 {[%clk 0:00:03.6]} 35... Ke5 {[%clk 0:00:03.2]}
36. bxc5 {[%clk 0:00:03.8]} 36... bxc5 {[%clk 0:00:02.8]} 37. a4 {[%clk
0:00:04.1]} 37... Rg4+ {[%clk 0:00:01.7]} 38. Kf3 {[%clk 0:00:04]} 38... Rh4
{[%clk 0:00:01.8]} 39. Kxe3 {[%clk 0:00:04.2]} 39... g4 {[%clk 0:00:02.7]} 40.
a5 {[%clk 0:00:03.3]} 40... Rh3+ {[%clk 0:00:02.9]} 41. Kf2 {[%clk 0:00:03.4]}
41... Rc3 {[%clk 0:00:03.6]} 42. Nf1 {[%clk 0:00:01.8]} 42... Rxc2+ {[%clk
0:00:04.1]} 43. Kg3 {[%clk 0:00:02.2]} 43... Kxe4 {[%clk 0:00:04]} 44. Kxg4
{[%clk 0:00:02.6]} 44... Rg2+ {[%clk 0:00:03.8]} 45. Ng3+ {[%clk 0:00:02.8]}
45... Kd5 {[%clk 0:00:04.4]} 46. Rb6 {[%clk 0:00:03.1]} 46... Ra2 {[%clk
0:00:05.3]} 47. a6 {[%clk 0:00:03.4]} 47... c4 {[%clk 0:00:05.2]} 48. Nf5 {[%clk
0:00:03.6]} 48... Kc5 {[%clk 0:00:05.4]} 49. Rxd6 {[%clk 0:00:03.5]} 49... c3
{[%clk 0:00:06.3]} 0-1